fUST/lending_fUST_20250623
["ID","MTS","AMOUNT","RATE_DAILY","PERIOD"]
[367086031,1750653046654,-964.31,0.00021917,2]
[367086032,1750653046664,-460.0,0.00021917,2]
[367086033,1750653046674,-460.0,0.00021917,2]
[367086034,1750653046683,-460.0,0.00021917,2]
[367086035,1750653046692,-6628.96,0.00021917,2]
[367086036,1750653046704,-1946.91,0.00021917,2]
[367086037,1750653046714,-927.72,0.00021917,2]
[367086038,1750653046723,-8748.17,0.00021917,2]
[367086039,1750653046733,-460.0,0.00021917,2]
[367086040,1750653046743,-460.0,0.00021917,2]
[367086041,1750653046843,-460.0,0.00021917,2]
[367086042,1750653046853,-460.0,0.00021917,2]
[367086043,1750653046863,-1137.71,0.00021917,2]
[367086044,1750653046872,-460.0,0.00021917,2]
[367086045,1750653046882,-460.0,0.00021917,2]
[367086046,1750653046891,-460.0,0.00021917,2]
[367086047,1750653046901,-2059.26,0.00021917,2]
[367086048,1750653046909,-460.0,0.00021917,2]
[367086049,1750653046920,-504.49277177,0.00021917,2]
[367086050,1750653046930,-1264.74,0.00021917,2]
[367086051,1750653046939,-460.0,0.00021917,2]
[367086052,1750653046948,-969.9,0.00021917,2]
[367086053,1750653046958,-460.0,0.00021917,2]
[367086054,1750653046967,-460.0,0.00021917,2]
[367086055,1750653046977,-1641.87,0.00021917,2]
[367086056,1750653046986,-460.0,0.00021917,2]
[367086057,1750653046996,-500.0,0.00021917,2]
[367086058,1750653047005,-460.0,0.00021917,2]
[367086059,1750653047014,-296.85684112,0.00021917,2]
[367086060,1750653047023,-460.0,0.00021917,2]
[367086061,1750653047032,-460.0,0.00021917,2]
[367086062,1750653047042,-460.0,0.00021917,2]
[367086063,1750653047051,-1340.15,0.00021917,2]
[367086064,1750653047060,-287.46108804,0.00021917,2]
[367086065,1750653047069,-460.0,0.00021917,2]
[367086066,1750653047078,-433.68579188,0.00021917,2]
[367086067,1750653047087,-460.0,0.00021917,2]
[367086068,1750653047096,-835.91,0.00021917,2]
[367086069,1750653047105,-733.72,0.00021917,2]
[367086070,1750653047115,-889.01,0.00021917,2]
[367086071,1750653047124,-460.0,0.00021917,2]
[367086072,1750653047133,-460.0,0.00021917,2]
[367086073,1750653047142,-460.0,0.00021917,2]
[367086074,1750653047151,-5558.49,0.00021917,2]
[367086075,1750653047160,-460.0,0.00021917,2]
[367086076,1750653047169,-6551.47,0.00021917,2]
[367086077,1750653047178,-460.0,0.00021917,2]
[367086078,1750653047186,-460.0,0.00021917,2]
[367086079,1750653047196,-460.0,0.00021917,2]
[367086080,1750653047205,-460.0,0.00021917,2]
[367086081,1750653047214,-572.64,0.00021917,2]
[367086082,1750653047223,-1492.23,0.00021917,2]
[367086083,1750653047232,-606.50134723,0.00021917,2]
[367086084,1750653047241,-460.0,0.00021917,2]
[367086085,1750653047251,-460.0,0.00021917,2]
[367086086,1750653047262,-460.0,0.00021917,2]
[367086087,1750653047272,-1521.36,0.00021917,2]
[367086088,1750653047282,-460.0,0.00021917,2]
[367086089,1750653047291,-460.0,0.00021917,2]
[367086090,1750653047301,-460.0,0.00021917,2]
[367086091,1750653047311,-460.0,0.00021917,2]
[367086092,1750653047329,-2919.93,0.00021917,2]
[367086093,1750653047342,-460.0,0.00021917,2]
[367086094,1750653047352,-460.0,0.00021917,2]
[367086095,1750653047363,-3250.09,0.00021917,2]
[367086096,1750653047374,-460.0,0.00021917,2]
[367086097,1750653047384,-464.23988757,0.00021917,2]
[367086098,1750653047394,-1988.91,0.00021917,2]
[367086099,1750653047404,-486.58,0.00021917,2]
[367086100,1750653047413,-460.0,0.00021917,2]
[367086101,1750653047424,-460.0,0.00021917,2]
[367086102,1750653047435,-462.6983466,0.00021917,2]
[367086103,1750653047446,-460.0,0.00021917,2]
[367086104,1750653047460,-460.0,0.00021917,2]
[367086105,1750653047472,-499.08,0.00021917,2]
[367086106,1750653047483,-460.0,0.00021917,2]
[367086107,1750653047494,-460.0,0.00021917,2]
[367086108,1750653047503,-460.0,0.00021917,2]
[367086109,1750653047513,-770.43,0.00021917,2]
[367086110,1750653047522,-460.0,0.00021917,2]
[367086111,1750653047532,-1844.57,0.00021917,2]
[367086112,1750653047541,-1605.06,0.00021917,2]
[367086113,1750653047552,-460.0,0.00021917,2]
[367086114,1750653047562,-857.85,0.00021917,2]
[367086115,1750653047571,-460.0,0.00021917,2]
[367086116,1750653047581,-460.0,0.00021917,2]
[367086117,1750653047591,-460.0,0.00021917,2]
[367086118,1750653047601,-460.0,0.00021917,2]
[367086119,1750653047610,-460.0,0.00021917,2]
[367086120,1750653047620,-1107.51,0.00021917,2]
[367086121,1750653047629,-166.0,0.00021918,2]
[367086122,1750653047638,-400.0,0.00021918,7]
[367086123,1750653047649,-150.0,0.00021918,2]
[367086124,1750653047659,-271.29082962,0.00021918,2]
[367086125,1750653047669,-500.0,0.00021973,2]
[367086126,1750653047678,-500.99506199,0.00021973,2]
[367086127,1750653047691,-500.0,0.00021973,2]
[367086128,1750653047704,-500.0,0.00021973,2]
[367086129,1750653047714,-500.0,0.00021973,2]
[367086130,1750653047724,-500.0,0.00021973,2]
[367086131,1750653047734,-500.0,0.00021973,2]
[367086132,1750653047744,-500.0,0.00021973,2]
[367086133,1750653047753,-500.0,0.00021973,2]
[367086134,1750653047763,-500.0,0.00021973,2]
[367086135,1750653047772,-500.0,0.00021973,2]
[367086136,1750653047783,-500.0,0.00021973,2]
[367086137,1750653047793,-500.0,0.00021973,2]
[367086138,1750653047802,-158.92316879,0.00021973,2]
[367086139,1750653047812,-502.16347564,0.00021973,2]
[367086140,1750653047821,-500.0,0.00021973,2]
[367086141,1750653047831,-500.0,0.00021973,2]
[367086142,1750653047841,-500.63548918,0.00021973,2]
[367086143,1750653047851,-151.0,0.00021973,7]
[367086144,1750653047860,-239.78295213,0.00021998,2]
[367086145,1750653047871,-3276.71,0.00022,7]
[367086146,1750653047881,-441.0,0.00022,2]
[367086147,1750653047890,-846.53928378,0.00022023,2]
[367086148,1750653047899,-213.63163053,0.00022023,2]
[367086149,1750653047909,-230.18214666,0.00022023,2]
[367086150,1750653047919,-836.70095952,0.00022023,2]
[367086151,1750653047929,-425.08510397,0.00022023,2]
[367086152,1750653047938,-160.0,0.00022023,2]
[367086153,1750653047948,-160.0,0.00022023,2]
[367086154,1750653047958,-12553.69357174,0.00022024,2]
[367086155,1750653047968,-235.84568681,0.00022159,2]
[367086156,1750653047978,-500.0,0.00022173,2]
[367086157,1750653047988,-500.0,0.00022173,2]
[367086158,1750653047997,-502.2469423,0.00022173,2]
[367086159,1750653048006,-500.0,0.00022173,2]
[367086160,1750653048016,-478.71138157,0.00022173,2]
[367086161,1750653048026,-500.72944794,0.00022173,2]
[367086162,1750653048035,-500.0,0.00022173,2]
[367086163,1750653048044,-327.8597219,0.00022173,2]
[367086164,1750653048054,-501.62931056,0.00022173,2]
[367086165,1750653048064,-500.0,0.00022173,2]
[367086166,1750653048073,-500.0,0.00022173,2]
[367086167,1750653048083,-500.0,0.00022173,2]
[367086168,1750653048093,-500.0,0.00022173,2]
[367086169,1750653048103,-500.0,0.00022173,2]
[367086170,1750653048112,-500.0,0.00022173,2]
[367086171,1750653048122,-500.0,0.00022173,2]
[367086172,1750653048131,-500.0,0.00022173,2]
[367086173,1750653048141,-500.0,0.00022173,2]
[367086174,1750653048150,-500.0,0.00022173,2]
[367086175,1750653048160,-500.0,0.00022173,2]
[367086176,1750653048169,-500.0,0.00022173,2]
[367086177,1750653048179,-500.0,0.00022173,2]
[367086178,1750653048188,-500.0,0.00022173,2]
[367086179,1750653048198,-600.0,0.00022173,2]
[367086180,1750653048207,-510.53682296,0.00022173,2]
[367086181,1750653048217,-500.0,0.00022173,2]
[367086182,1750653048227,-647.64556913,0.00022173,2]
[367086183,1750653048237,-500.0,0.00022173,2]
[367086184,1750653048247,-387.89015185,0.00022173,2]
[367086185,1750653048256,-500.0,0.00022173,2]
[367086186,1750653048266,-501.1127398,0.00022173,2]
[367086187,1750653048276,-500.0,0.00022173,2]
[367086188,1750653048286,-500.0,0.00022173,2]
[367086189,1750653048296,-300.0,0.00022182,2]
[367086190,1750653048305,-5651.21584024,0.00022191,2]
[367086191,1750653048315,-492.97,0.00022191,2]
[367086192,1750653048324,-560.89,0.00022191,2]
[367086193,1750653048334,-460.0,0.00022191,2]
[367086194,1750653048344,-158.29806019,0.00022191,2]
[367086195,1750653048354,-460.0,0.00022191,2]
[367086196,1750653048365,-460.0,0.00022191,2]
[367086197,1750653048375,-602.87,0.00022191,2]
[367086198,1750653048386,-460.0,0.00022191,2]
[367086199,1750653048396,-460.0,0.00022191,2]
[367086200,1750653048406,-460.0,0.00022191,2]
[367086201,1750653048415,-460.0,0.00022191,2]
[367086202,1750653048425,-460.0,0.00022191,2]
[367086203,1750653048435,-460.0,0.00022191,2]
[367086204,1750653048445,-460.0,0.00022191,2]
[367086205,1750653048456,-460.0,0.00022191,2]
[367086206,1750653048466,-460.0,0.00022191,2]
[367086207,1750653048476,-460.0,0.00022191,2]
[367086208,1750653048486,-1044.13,0.00022191,2]
[367086209,1750653048496,-460.0,0.00022191,2]
[367086210,1750653048506,-460.0,0.00022191,2]
[367086211,1750653048516,-460.0,0.00022191,2]
[367086212,1750653048526,-460.0,0.00022191,2]
[367086213,1750653048536,-460.0,0.00022191,2]
[367086214,1750653048546,-462.26954565,0.00022191,2]
[367086215,1750653048555,-460.0,0.00022191,2]
[367086216,1750653048565,-460.0,0.00022191,2]
[367086217,1750653048575,-460.0,0.00022191,2]
[367086218,1750653048584,-855.45,0.00022191,2]
[367086219,1750653048596,-174.95871843,0.00022191,2]
[367086220,1750653048605,-460.0,0.00022191,2]
[367086221,1750653048614,-436.11034395,0.00022191,2]
[367086222,1750653048624,-778.07,0.00022191,2]
[367086223,1750653048633,-580.0,0.00022191,2]
[367086224,1750653048643,-192.89041772,0.00022191,2]
[367086225,1750653048652,-151.0,0.00022191,2]
[367086226,1750653048662,-460.0,0.00022191,2]
[367086227,1750653048671,-460.0,0.00022191,2]
[367086228,1750653048681,-487.66,0.00022191,2]
[367086229,1750653048690,-460.0,0.00022191,2]
[367086230,1750653048699,-460.0,0.00022191,2]
[367086231,1750653048712,-460.0,0.00022191,2]
[367086232,1750653048721,-460.0,0.00022191,2]
[367086233,1750653048731,-165.87209766,0.00022191,2]
[367086234,1750653048741,-466.39064937,0.00022191,2]
[367086235,1750653048751,-460.0,0.00022191,2]
[367086236,1750653048762,-460.0,0.00022191,2]
[367086237,1750653048773,-460.0,0.00022191,2]
[367086238,1750653048784,-170.53934948,0.00022191,2]
[367086239,1750653048795,-460.0,0.00022191,2]
[367086240,1750653048805,-460.0,0.00022191,2]
[367086241,1750653048815,-488.7,0.00022191,2]
[367086242,1750653048826,-460.0,0.00022191,2]
[367086243,1750653048836,-860.34,0.00022191,2]
[367086244,1750653048847,-460.0,0.00022191,2]
[367086245,1750653048857,-436.7836657,0.00022191,2]
[367086246,1750653048868,-460.0,0.00022191,2]
[367086247,1750653048878,-597.68506374,0.00022191,2]
[367086248,1750653048889,-584.47775981,0.00022191,2]
[367086249,1750653048899,-460.0,0.00022191,2]
[367086250,1750653048910,-534.02,0.00022191,2]
[367086251,1750653048921,-460.0,0.00022191,2]
[367086252,1750653048931,-460.0,0.00022191,2]
[367086253,1750653048942,-460.0,0.00022191,2]
[367086254,1750653048953,-460.0,0.00022191,2]
[367086255,1750653048964,-460.0,0.00022191,2]
[367086256,1750653048974,-460.0,0.00022191,2]
[367086257,1750653048985,-460.0,0.00022191,2]
[367086258,1750653048996,-460.0,0.00022191,2]
[367086259,1750653049007,-461.66943298,0.00022191,2]
[367086260,1750653049017,-460.0,0.00022191,2]
[367086261,1750653049028,-897.01,0.00022191,2]
[367086262,1750653049038,-878.45,0.00022191,2]
[367086263,1750653049048,-460.0,0.00022191,2]
[367086264,1750653049058,-460.0,0.00022191,2]
[367086265,1750653049068,-460.0,0.00022191,2]
[367086266,1750653049078,-460.0,0.00022191,2]
[367086267,1750653049088,-460.0,0.00022191,2]
[367086268,1750653049099,-460.0,0.00022191,2]
[367086269,1750653049109,-460.0,0.00022191,2]
[367086270,1750653049119,-460.0,0.00022191,2]
[367086271,1750653049128,-460.0,0.00022191,2]
[367086272,1750653049138,-460.0,0.00022191,2]
[367086273,1750653049148,-151.0,0.00022191,7]
[367086274,1750653049158,-460.0,0.00022191,2]
[367086275,1750653049168,-448.16716128,0.00022191,2]
[367086276,1750653049178,-460.0,0.00022191,2]
[367086277,1750653049188,-460.0,0.00022191,2]
[367086278,1750653049198,-460.0,0.00022191,2]
[367086279,1750653049209,-460.0,0.00022191,2]
[367086280,1750653049219,-460.0,0.00022191,2]
[367086281,1750653049229,-460.0,0.00022191,2]
[367086282,1750653049239,-460.0,0.00022191,2]
[367086283,1750653049250,-1859.93,0.00022191,2]
[367086284,1750653049260,-460.0,0.00022191,2]
[367086285,1750653049270,-460.0,0.00022191,2]
[367086286,1750653049280,-460.0,0.00022191,2]
[367086287,1750653049290,-288.848168,0.00022191,7]
[367086288,1750653049300,-460.0,0.00022191,2]
[367086289,1750653049310,-288.848168,0.00022191,7]
[367086290,1750653049321,-292.67872126,0.00022191,2]
[367086291,1750653049330,-460.0,0.00022191,2]
[367086292,1750653049341,-460.0,0.00022191,2]
[367086293,1750653049351,-460.0,0.00022191,2]
[367086294,1750653049360,-440.0,0.00022191,2]
[367086295,1750653049371,-686.91,0.00022191,2]
[367086296,1750653049381,-391.84199713,0.00022191,2]
[367086297,1750653049390,-460.0,0.00022191,2]
[367086298,1750653049400,-1319.96,0.00022191,2]
[367086299,1750653049410,-460.0,0.00022191,2]
[367086300,1750653049420,-460.0,0.00022191,2]
[367086301,1750653049430,-460.0,0.00022191,2]
[367086302,1750653049439,-460.0,0.00022191,2]
[367086303,1750653049449,-460.0,0.00022191,2]
[367086304,1750653049460,-460.0,0.00022191,2]
[367086305,1750653049469,-460.0,0.00022191,2]
[367086306,1750653049479,-460.0,0.00022191,2]
[367086307,1750653049489,-460.0,0.00022191,2]
[367086308,1750653049499,-460.0,0.00022191,2]
[367086309,1750653049509,-460.0,0.00022191,2]
[367086310,1750653049519,-522.95,0.00022191,2]
[367086311,1750653049530,-1041.1,0.00022191,2]
[367086312,1750653049540,-460.0,0.00022191,2]
[367086313,1750653049550,-460.0,0.00022191,2]
[367086314,1750653049559,-460.0,0.00022191,2]
[367086315,1750653049569,-460.0,0.00022191,2]
[367086316,1750653049580,-460.0,0.00022191,2]
[367086317,1750653049590,-531.63,0.00022191,2]
[367086318,1750653049601,-460.0,0.00022191,2]
[367086319,1750653049612,-460.0,0.00022191,2]
[367086320,1750653049622,-460.0,0.00022191,2]
[367086321,1750653049632,-1483.84,0.00022191,2]
[367086322,1750653049642,-575.46,0.00022191,2]
[367086323,1750653049652,-460.0,0.00022191,2]
[367086324,1750653049662,-460.0,0.00022191,2]
[367086325,1750653049671,-3498.23,0.00022191,2]
[367086326,1750653049681,-513.0,0.00022191,2]
[367086327,1750653049691,-460.0,0.00022191,2]
[367086328,1750653049701,-508.84,0.00022191,2]
[367086329,1750653049713,-460.0,0.00022191,2]
[367086330,1750653049723,-738.61,0.00022191,2]
[367086331,1750653049733,-460.0,0.00022191,2]
[367086332,1750653049743,-290.77287566,0.00022191,2]
[367086333,1750653049753,-876.49,0.00022191,2]
[367086334,1750653049763,-1310.47,0.00022191,2]
[367086335,1750653049773,-1165.89,0.00022191,2]
[367086336,1750653049783,-460.0,0.00022191,2]
[367086337,1750653049794,-796.43,0.00022191,2]
[367086338,1750653049804,-892.92,0.00022191,2]
[367086339,1750653049814,-460.0,0.00022191,2]
[367086340,1750653049824,-460.0,0.00022191,2]
[367086341,1750653049834,-460.0,0.00022191,2]
[367086342,1750653049844,-460.0,0.00022191,2]
[367086343,1750653049853,-460.0,0.00022191,2]
[367086344,1750653049863,-460.0,0.00022191,2]
[367086345,1750653049873,-827.17,0.00022191,2]
[367086346,1750653049883,-460.0,0.00022191,2]
[367086347,1750653049894,-460.0,0.00022191,2]
[367086348,1750653049903,-460.0,0.00022191,2]
[367086349,1750653049914,-151.0,0.00022191,2]
[367086350,1750653049924,-151.0,0.00022191,2]
[367086351,1750653049934,-151.0,0.00022191,2]
[367086352,1750653049944,-151.0,0.00022191,2]
[367086353,1750653049953,-460.0,0.00022191,2]
[367086354,1750653049963,-624.43,0.00022191,2]
[367086355,1750653049973,-151.0,0.00022191,2]
[367086356,1750653049983,-460.0,0.00022191,2]
[367086357,1750653049993,-798.68,0.00022191,2]
[367086358,1750653050003,-151.0,0.00022191,2]
[367086359,1750653050013,-151.0,0.00022191,2]
[367086360,1750653050023,-512.45,0.00022191,2]
[367086361,1750653050033,-151.0,0.00022191,2]
[367086362,1750653050043,-151.0,0.00022191,2]
[367086363,1750653050053,-460.0,0.00022191,2]
[367086364,1750653050063,-340.05117822,0.00022191,2]
[367086365,1750653050072,-151.0,0.00022191,2]
[367086366,1750653050082,-151.0,0.00022191,2]
[367086367,1750653050091,-460.0,0.00022191,2]
[367086368,1750653050101,-151.0,0.00022191,2]
[367086369,1750653050112,-460.0,0.00022191,2]
[367086370,1750653050121,-460.0,0.00022191,2]
[367086371,1750653050131,-2363.73,0.00022191,2]
[367086372,1750653050141,-193.57315855,0.00022191,2]
[367086373,1750653050151,-460.0,0.00022191,2]
[367086374,1750653050162,-1247.14,0.00022191,2]
[367086375,1750653050172,-460.0,0.00022191,2]
[367086376,1750653050182,-460.0,0.00022191,2]
[367086377,1750653050192,-335.67082489,0.00022191,2]
[367086378,1750653050202,-460.0,0.00022191,2]
[367086379,1750653050211,-460.0,0.00022191,2]
[367086380,1750653050221,-460.0,0.00022191,2]
[367086381,1750653050231,-507.23,0.00022191,2]
[367086382,1750653050241,-460.0,0.00022191,2]
[367086383,1750653050250,-460.0,0.00022191,2]
[367086384,1750653050260,-460.0,0.00022191,2]
[367086385,1750653050270,-460.0,0.00022191,2]
[367086386,1750653050280,-1012.64,0.00022191,2]
[367086387,1750653050290,-460.0,0.00022191,2]
[367086388,1750653050300,-460.0,0.00022191,2]
[367086389,1750653050309,-460.0,0.00022191,2]
[367086390,1750653050319,-460.0,0.00022191,2]
[367086391,1750653050329,-762.59,0.00022191,2]
[367086392,1750653050338,-460.0,0.00022191,2]
[367086393,1750653050348,-473.12,0.00022191,2]
[367086394,1750653050358,-460.0,0.00022191,2]
[367086395,1750653050368,-367.75975895,0.00022191,2]
[367086396,1750653050378,-460.0,0.00022191,2]
[367086397,1750653050388,-460.0,0.00022191,2]
[367086398,1750653050398,-2016.55,0.00022191,2]
[367086399,1750653050408,-460.0,0.00022191,2]
[367086400,1750653050418,-460.0,0.00022191,2]
[367086401,1750653050427,-968.87,0.00022191,2]
[367086402,1750653050438,-412.92412149,0.00022191,2]
[367086403,1750653050448,-500.0,0.00022191,2]
[367086404,1750653050457,-460.0,0.00022191,2]
[367086405,1750653050468,-460.0,0.00022191,2]
[367086406,1750653050478,-460.0,0.00022191,2]
[367086407,1750653050488,-460.0,0.00022191,2]
[367086408,1750653050499,-1874.56,0.00022191,2]
[367086409,1750653050509,-460.0,0.00022191,2]
[367086410,1750653050518,-460.0,0.00022191,2]
[367086411,1750653050528,-460.0,0.00022191,2]
[367086412,1750653050538,-460.0,0.00022191,2]
[367086413,1750653050548,-546.67,0.00022191,2]
[367086414,1750653050558,-484.35848871,0.00022191,2]
[367086415,1750653050567,-460.0,0.00022191,2]
[367086416,1750653050578,-460.0,0.00022191,2]
[367086417,1750653050588,-460.0,0.00022191,2]
[367086418,1750653050598,-460.0,0.00022191,2]
[367086419,1750653050608,-460.0,0.00022191,2]
[367086420,1750653050618,-460.0,0.00022191,2]
[367086421,1750653050628,-531.76,0.00022191,2]
[367086422,1750653050638,-460.0,0.00022191,2]
[367086423,1750653050648,-460.0,0.00022191,2]
[367086424,1750653050659,-976.27,0.00022191,2]
[367086425,1750653050669,-563.72,0.00022191,2]
[367086426,1750653050679,-460.0,0.00022191,2]
[367086427,1750653050688,-460.0,0.00022191,2]
[367086428,1750653050698,-460.0,0.00022191,2]
[367086429,1750653050709,-1323.36,0.00022191,2]
[367086430,1750653050722,-460.0,0.00022191,2]
[367086431,1750653050732,-460.0,0.00022191,2]
[367086432,1750653050742,-460.0,0.00022191,2]
[367086433,1750653050752,-461.92134131,0.00022191,2]
[367086434,1750653050763,-891.24,0.00022191,2]
[367086435,1750653050773,-1240.95,0.00022191,2]
[367086436,1750653050783,-460.0,0.00022191,2]
[367086437,1750653050794,-365.02705219,0.00022191,2]
[367086438,1750653050804,-460.0,0.00022191,2]
[367086439,1750653050814,-460.0,0.00022191,2]
[367086440,1750653050824,-460.0,0.00022191,2]
[367086441,1750653050834,-1276.84,0.00022191,2]
[367086442,1750653050844,-460.0,0.00022191,2]
[367086443,1750653050854,-461.79525168,0.00022191,2]
[367086444,1750653050864,-460.0,0.00022191,2]
[367086445,1750653050875,-460.0,0.00022191,2]
[367086446,1750653050885,-460.0,0.00022191,2]
[367086447,1750653050895,-419.71674952,0.00022191,2]
[367086448,1750653050905,-460.0,0.00022191,2]
[367086449,1750653050916,-460.51890456,0.00022191,2]
[367086450,1750653050926,-457.24295903,0.00022191,2]
[367086451,1750653050936,-772.74,0.00022191,2]
[367086452,1750653050947,-460.0,0.00022191,2]
[367086453,1750653050957,-1067.55,0.00022191,2]
[367086454,1750653050967,-507.23,0.00022191,2]
[367086455,1750653050978,-460.0,0.00022191,2]
[367086456,1750653050988,-302.54620524,0.00022191,2]
[367086457,1750653052507,-182.98456766,0.00021804,2]
[367086458,1750653052517,-877.48,0.00021907,10]
[367086459,1750653052527,-460.0,0.00021917,2]
[367086460,1750653052536,-82.18277472,0.00021917,2]
[367086461,1750653052884,-377.81722528,0.00021917,2]
[367086462,1750653052894,-460.0,0.00021917,2]
[367086463,1750653052904,-492.97,0.00021917,2]
[367086464,1750653052913,-460.54171776,0.00021917,2]
[367086465,1750653052922,-460.0,0.00021917,2]
[367086466,1750653052932,-460.0,0.00021917,2]
[367086467,1750653052941,-465.81,0.00021917,2]
[367086468,1750653052950,-460.0,0.00021917,2]
[367086469,1750653052960,-460.0,0.00021917,2]
[367086470,1750653052969,-157.45379476,0.00022191,2]
[367086471,1750653052979,-223.46578571,0.00022191,2]
[367086472,1750653052988,-470.06363258,0.00022191,2]
[367086473,1750653052997,-460.0,0.00022191,2]
[367086474,1750653053006,-460.0,0.00022191,2]
[367086475,1750653053016,-460.0,0.00022191,2]
[367086476,1750653053025,-595.75,0.00022191,2]
[367086477,1750653053035,-1586.08,0.00022191,2]
[367086478,1750653053044,-460.0,0.00022191,2]
[367086479,1750653053053,-460.0,0.00022191,2]
[367086480,1750653053062,-537.69,0.00022191,2]
[367086481,1750653053071,-682.13,0.00022191,2]
[367086482,1750653053080,-460.0,0.00022191,2]
[367086483,1750653053089,-460.0,0.00022191,2]
[367086484,1750653053098,-360.3797659,0.00022191,2]
[367086485,1750653053107,-460.0,0.00022191,2]
[367086486,1750653053116,-460.0,0.00022191,2]
[367086487,1750653053126,-1442.25,0.00022191,2]
[367086488,1750653053136,-460.0,0.00022191,2]
[367086489,1750653053145,-460.0,0.00022191,2]
[367086490,1750653053153,-545.88499435,0.00022191,2]
[367086491,1750653053163,-886.71,0.00022191,2]
[367086492,1750653053171,-460.0,0.00022191,2]
[367086493,1750653053180,-460.0,0.00022191,2]
[367086494,1750653053190,-460.0,0.00022191,2]
[367086495,1750653053247,-460.0,0.00022191,2]
[367086496,1750653053258,-460.0,0.00022191,2]
[367086497,1750653053267,-864.43,0.00022191,2]
[367086498,1750653053276,-232.25180472,0.00022191,2]
[367086499,1750653053285,-460.0,0.00022191,2]
[367086500,1750653053294,-460.0,0.00022191,2]
[367086501,1750653053303,-460.0,0.00022191,2]
[367086502,1750653053312,-460.0,0.00022191,2]
[367086503,1750653053321,-485.73,0.00022191,2]
[367086504,1750653053330,-488.93,0.00022191,2]
[367086505,1750653053339,-460.0,0.00022191,2]
[367086506,1750653053348,-460.0,0.00022191,2]
[367086507,1750653053358,-460.0,0.00022191,2]
[367086508,1750653053367,-2181.34,0.00022191,2]
[367086509,1750653053376,-557.88,0.00022191,2]
[367086510,1750653053385,-460.0,0.00022191,2]
[367086511,1750653053394,-677.44,0.00022191,2]
[367086512,1750653053403,-460.0,0.00022191,2]
[367086513,1750653053412,-460.0,0.00022191,2]
[367086514,1750653053422,-460.0,0.00022191,2]
[367086515,1750653053431,-460.0,0.00022191,2]
[367086516,1750653053440,-403.38422393,0.00022191,2]
[367086517,1750653053449,-460.0,0.00022191,2]
[367086518,1750653053459,-460.0,0.00022191,2]
[367086519,1750653053468,-805.25,0.00022191,2]
[367086520,1750653053477,-460.0,0.00022191,2]
[367086521,1750653053486,-466.05,0.00022191,2]
[367086522,1750653053495,-460.0,0.00022191,2]
[367086523,1750653053504,-460.0,0.00022191,2]
[367086524,1750653053513,-460.0,0.00022191,2]
[367086525,1750653053523,-460.0,0.00022191,2]
[367086526,1750653053532,-460.77696544,0.00022191,2]
[367086527,1750653053541,-460.0,0.00022191,2]
[367086528,1750653053551,-151.0,0.00022191,7]
[367086529,1750653053560,-151.0,0.00022191,7]
[367086530,1750653053570,-538.38,0.00022191,2]